[Event "MČR v bleskovém šachu družstev 2019"]
[Site "Teplice, Czech Republic"]
[Date "2019.09.14"]
[Round "9.8"]
[White "Postupa, Pavel"]
[Black "Kuba, Jindrich"]
[Result "0-1"]
[TimeControl "3 mim. + 2 s"]
[BlackTitle "FM"]
[WhiteFideId "326410"]
[BlackFideId "318248"]
[WhiteElo "2184"]
[BlackElo "2223"]

1. e4 {[%clk 00:03:03]} c5 {[%clk 00:03:04]} 2. Nf3 {[%clk 00:03:04]} {[%emt
00:00:02]} e6 {[%clk 00:03:05]} 3. g3 {[%clk 00:03:04]} {[%emt 00:00:01]} Nc6
{[%clk 00:03:05]} {[%emt 00:00:02]} 4. Bg2 {[%clk 00:03:05]} {[%emt 00:00:01]}
Qc7 {[%clk 00:03:05]} {[%emt 00:00:02]} 5. O-O {[%clk 00:03:06]} {[%emt
00:00:02]} Nf6 {[%clk 00:03:06]} 6. Qe2 {[%clk 00:03:06]} {[%emt 00:00:02]} d6
{[%clk 00:03:07]} {[%emt 00:00:01]} 7. Rd1 {[%clk 00:03:07]} {[%emt 00:00:01]}
Nd4 {[%clk 00:03:02]} {[%emt 00:00:07]} 8. Nxd4 {[%clk 00:03:07]} {[%emt
00:00:02]} cxd4 {[%clk 00:03:03]} 9. c3 {[%clk 00:03:08]} {[%emt 00:00:02]}
dxc3 {[%clk 00:02:59]} {[%emt 00:00:07]} 10. Nxc3 {[%clk 00:03:03]} {[%emt
00:00:07]} Be7 {[%clk 00:02:59]} {[%emt 00:00:02]} 11. d4 {[%clk 00:03:04]}
{[%emt 00:00:01]} a6 {[%clk 00:02:40]} {[%emt 00:00:21]} 12. Bf4 {[%clk
00:03:04]} {[%emt 00:00:01]} Nd7 {[%clk 00:02:37]} {[%emt 00:00:05]} 13. Rac1
{[%clk 00:03:03]} {[%emt 00:00:03]} Qb6 {[%clk 00:02:14]} {[%emt 00:00:24]} 14.
Be3 {[%clk 00:02:48]} {[%emt 00:00:19]} Qa5 {[%clk 00:02:10]} {[%emt 00:00:05]}
15. a3 {[%clk 00:02:47]} {[%emt 00:00:03]} O-O {[%clk 00:02:07]} {[%emt
00:00:05]} 16. Bd2 {[%clk 00:02:10]} {[%emt 00:00:39]} Qd8 {[%clk 00:02:01]}
{[%emt 00:00:08]} 17. b4 {[%clk 00:02:10]} {[%emt 00:00:01]} b5 {[%clk
00:02:00]} {[%emt 00:00:04]} 18. e5 {[%clk 00:02:06]} {[%emt 00:00:06]} d5
{[%clk 00:02:01]} {[%emt 00:00:01]} 19. h4 {[%clk 00:02:04]} {[%emt 00:00:04]}
Nb6 {[%clk 00:02:01]} {[%emt 00:00:02]} 20. Qg4 {[%clk 00:02:03]} {[%emt
00:00:03]} f5 {[%clk 00:01:54]} {[%emt 00:00:10]} 21. exf6 {[%clk 00:01:59]}
{[%emt 00:00:05]} Bxf6 {[%clk 00:01:54]} {[%emt 00:00:02]} 22. Be3 {[%clk
00:01:45]} {[%emt 00:00:16]} Nc4 {[%clk 00:01:45]} {[%emt 00:00:11]} 23. a4
{[%clk 00:01:45]} {[%emt 00:00:02]} Rb8 {[%clk 00:01:34]} {[%emt 00:00:13]} 24.
axb5 {[%clk 00:01:45]} {[%emt 00:00:02]} axb5 {[%clk 00:01:35]} 25. Qe2 {[%clk
00:01:40]} {[%emt 00:00:08]} Kh8 {[%clk 00:01:32]} {[%emt 00:00:05]} 26. Bf4
{[%clk 00:01:29]} {[%emt 00:00:13]} Rb7 {[%clk 00:01:26]} {[%emt 00:00:08]} 27.
Ra1 {[%clk 00:01:27]} {[%emt 00:00:04]} Bxh4 {[%clk 00:01:26]} {[%emt
00:00:02]} 28. Ra8 {[%clk 00:01:16]} {[%emt 00:00:12]} Bf6 {[%clk 00:01:22]}
{[%emt 00:00:06]} 29. Bf1 {[%clk 00:01:08]} {[%emt 00:00:11]} Qe7 {[%clk
00:01:12]} {[%emt 00:00:12]} 30. Rb1 {[%clk 00:00:59]} {[%emt 00:00:10]} Bxd4
{[%clk 00:01:14]} {[%emt 00:00:03]} 31. Nxd5 {[%clk 00:00:59]} {[%emt
00:00:05]} Qf7 {[%clk 00:01:08]} {[%emt 00:00:07]} 32. Ne3 {[%clk 00:00:54]}
{[%emt 00:00:07]} e5 {[%clk 00:01:02]} {[%emt 00:00:09]} 33. Nxc4 {[%clk
00:00:52]} {[%emt 00:00:04]} bxc4 {[%clk 00:01:02]} {[%emt 00:00:02]} 34. Be3
{[%clk 00:00:52]} {[%emt 00:00:02]} c3 {[%clk 00:00:57]} {[%emt 00:00:07]} 35.
Bg2 {[%clk 00:00:39]} {[%emt 00:00:14]} Rc7 {[%clk 00:00:55]} {[%emt 00:00:04]}
36. b5 {[%clk 00:00:40]} {[%emt 00:00:01]} Bb7 {[%clk 00:00:50]} {[%emt
00:00:07]} 37. Rxf8+ {[%clk 00:00:39]} {[%emt 00:00:03]} Qxf8 {[%clk 00:00:51]}
{[%emt 00:00:01]} 38. Bxd4 {[%clk 00:00:33]} {[%emt 00:00:09]} exd4 {[%clk
00:00:52]} {[%emt 00:00:02]} 39. Qe5 {[%clk 00:00:34]} {[%emt 00:00:01]} Qd8
{[%clk 00:00:18]} {[%emt 00:00:36]} 40. Bc6 {[%clk 00:00:28]} {[%emt 00:00:08]}
Bxc6 {[%clk 00:00:17]} {[%emt 00:00:03]} 41. bxc6 {[%clk 00:00:29]} {[%emt
00:00:01]} Rxc6 {[%clk 00:00:18]} 42. Rb8 {[%clk 00:00:30]} {[%emt 00:00:02]}
Rc8 {[%clk 00:00:20]} 43. Rb7 {[%clk 00:00:28]} {[%emt 00:00:03]} Qf8 {[%clk
00:00:18]} {[%emt 00:00:04]} 44. Qe1 {[%clk 00:00:25]} {[%emt 00:00:06]} c2
{[%clk 00:00:19]} {[%emt 00:00:01]} 45. Qc1 d3 {[%emt 00:00:01]} 46. Rd7 {[%clk
00:00:27]} {[%emt 00:00:01]} Qf3 {[%clk 00:00:18]} {[%emt 00:00:04]} 0-1

[Event "MČR v bleskovém šachu družstev 2019"]
[Site "Teplice, Czech Republic"]
[Date "2019.09.14"]
[Round "9.9"]
[White "Rubes, Jan"]
[Black "Vykouk, Jan"]
[Result "1/2-1/2"]
[TimeControl "3 mim. + 2 s"]
[WhiteTitle "FM"]
[BlackTitle "IM"]
[WhiteFideId "338176"]
[WhiteElo "2316"]
[BlackElo "2439"]

1. Nf3 {[%emt 00:14:01]} Nf6 {[%emt 00:00:01]} 2. g3 {[%emt 00:00:01]} g6
{[%emt 00:00:02]} 3. b3 Bg7 {[%emt 00:00:01]} 4. Bb2 O-O {[%emt 00:00:02]} 5.
Bg2 c5 {[%emt 00:00:06]} 6. c4 {[%emt 00:00:01]} d6 {[%emt 00:00:03]} 7. d4
{[%emt 00:00:07]} Qa5+ {[%emt 00:00:17]} 8. Nc3 {[%emt 00:00:01]} Ne4 {[%emt
00:00:03]} 9. Rc1 {[%emt 00:00:01]} Nc6 {[%emt 00:00:29]} 10. O-O {[%emt
00:00:04]} Nxc3 {[%emt 00:00:24]} 11. Bxc3 {[%emt 00:00:02]} Qd8 {[%emt
00:00:01]} 12. e3 {[%emt 00:00:05]} Bg4 {[%emt 00:00:11]} 13. h3 {[%emt
00:00:07]} Bxf3 {[%emt 00:00:26]} 14. Bxf3 {[%emt 00:00:01]} cxd4 {[%emt
00:00:01]} 15. exd4 {[%emt 00:00:02]} e6 {[%emt 00:00:01]} 16. Bg2 {[%emt
00:00:15]} d5 {[%emt 00:00:03]} 17. cxd5 {[%emt 00:00:09]} exd5 {[%emt
00:00:01]} 18. Qf3 {[%emt 00:00:05]} Bxd4 {[%emt 00:00:35]} 19. Qxd5 {[%emt
00:00:03]} Bxc3 {[%emt 00:00:05]} 20. Rxc3 {[%emt 00:00:01]} Qf6 {[%emt
00:00:03]} 21. Rf3 {[%emt 00:00:20]} Qe7 {[%emt 00:00:04]} 22. Re3 {[%emt
00:00:04]} Qf6 {[%emt 00:00:01]} 23. Qd7 {[%emt 00:00:07]} Nb4 {[%emt
00:00:09]} 24. Qxb7 {[%emt 00:00:20]} Nxa2 {[%emt 00:00:09]} 25. Qxa8 {[%emt
00:00:02]} Rxa8 {[%emt 00:00:01]} 26. Bxa8 {[%emt 00:00:01]} Nb4 {[%emt
00:00:08]} 27. Be4 {[%emt 00:00:10]} Kg7 {[%emt 00:00:02]} 28. Rd1 {[%emt
00:00:06]} a5 {[%emt 00:00:08]} 29. Kg2 {[%emt 00:00:09]} Qe6 {[%emt 00:00:18]}
30. Rd8 {[%emt 00:00:44]} f5 {[%emt 00:00:04]} 31. Bf3 Qf6 {[%emt 00:00:02]} 32.
Rd7+ {[%emt 00:00:05]} Kh6 {[%emt 00:00:02]} 33. Ree7 Qh8 {[%emt 00:00:04]} 34.
Ra7 {[%emt 00:00:15]} Nc2 {[%emt 00:00:01]} 35. Rxa5 {[%emt 00:00:11]} Qc3 36.
Raa7 {[%emt 00:00:15]} Ne1+ {[%emt 00:00:02]} 37. Rxe1 {[%emt 00:00:01]} Qxe1
38. h4 {[%emt 00:00:03]} Qb4 {[%emt 00:00:02]} 39. Rb7 {[%emt 00:00:03]} Qd4
{[%emt 00:00:02]} 40. b4 {[%emt 00:00:01]} g5 {[%emt 00:00:03]} 41. hxg5+ Kxg5
{[%emt 00:00:01]} 42. b5 {[%emt 00:00:04]} h5 {[%emt 00:00:02]} 43. Rh7 {[%emt
00:00:02]} Qb4 {[%emt 00:00:04]} 44. Rxh5+ {[%emt 00:00:01]} Kf6 45. Rh6+
{[%emt 00:00:06]} Kg5 46. Rh5+ {[%emt 00:00:04]} Kg6 47. Rh4 {[%emt 00:00:04]}
Qxb5 {[%emt 00:00:01]} 48. Rf4 Kg5 {[%emt 00:00:03]} 49. Rh4 {[%emt 00:00:02]}
Qe5 {[%emt 00:00:02]} 50. Rf4 {[%emt 00:00:03]} Qa5 {[%emt 00:00:01]} 51. Rh4
{[%emt 00:00:24]} 1/2-1/2

[Event "MČR v bleskovém šachu družstev 2019"]
[Site "Teplice, Czech Republic"]
[Date "2019.09.14"]
[Round "9.10"]
[White "Studnicka, Tomas"]
[Black "Hadraba, Vladimir"]
[Result "1/2-1/2"]
[TimeControl "3 mim. + 2 s"]
[WhiteTitle "IM"]
[BlackFideId "301663"]
[WhiteElo "2215"]
[BlackElo "2095"]

1. d4 {[%clk 00:03:03]} {[%emt 00:12:56]} Nf6 {[%clk 00:03:01]} {[%emt
00:00:02]} 2. c4 {[%clk 00:03:03]} {[%emt 00:00:03]} g6 {[%clk 00:03:03]} 3.
Nc3 {[%clk 00:03:04]} {[%emt 00:00:02]} Bg7 {[%clk 00:03:04]} 4. e4 {[%clk
00:03:05]} {[%emt 00:00:02]} d6 {[%clk 00:03:05]} 5. Be2 {[%clk 00:03:04]}
{[%emt 00:00:03]} O-O {[%clk 00:03:05]} {[%emt 00:00:02]} 6. Bg5 {[%clk
00:03:04]} {[%emt 00:00:01]} c6 {[%clk 00:03:02]} {[%emt 00:00:05]} 7. Nf3
{[%clk 00:02:58]} {[%emt 00:00:08]} Nbd7 {[%clk 00:03:00]} {[%emt 00:00:04]} 8.
Qd2 {[%clk 00:02:51]} {[%emt 00:00:09]} e5 {[%clk 00:02:51]} {[%emt 00:00:12]}
9. d5 {[%clk 00:02:42]} {[%emt 00:00:11]} Nc5 {[%clk 00:02:41]} {[%emt
00:00:11]} 10. dxc6 {[%clk 00:02:11]} {[%emt 00:00:33]} bxc6 {[%clk 00:02:41]}
{[%emt 00:00:02]} 11. O-O {[%clk 00:02:04]} {[%emt 00:00:09]} Qc7 {[%clk
00:02:33]} {[%emt 00:00:10]} 12. Bxf6 {[%clk 00:01:52]} {[%emt 00:00:14]} Bxf6
{[%clk 00:02:33]} {[%emt 00:00:02]} 13. Rfd1 {[%clk 00:01:52]} {[%emt
00:00:02]} Be7 {[%clk 00:02:28]} {[%emt 00:00:06]} 14. b4 {[%clk 00:01:49]}
{[%emt 00:00:05]} Ne6 {[%clk 00:02:27]} {[%emt 00:00:03]} 15. b5 {[%clk
00:01:41]} {[%emt 00:00:10]} c5 {[%clk 00:02:12]} {[%emt 00:00:16]} 16. Nd5
{[%clk 00:01:40]} {[%emt 00:00:02]} Qd8 {[%clk 00:02:13]} {[%emt 00:00:01]} 17.
Nxe7+ {[%clk 00:01:33]} {[%emt 00:00:09]} Qxe7 {[%clk 00:02:14]} {[%emt
00:00:02]} 18. Qxd6 {[%clk 00:01:32]} {[%emt 00:00:03]} Qxd6 {[%clk 00:01:55]}
{[%emt 00:00:21]} 19. Rxd6 {[%clk 00:01:33]} {[%emt 00:00:01]} f6 {[%clk
00:01:49]} {[%emt 00:00:08]} 20. a4 {[%clk 00:01:04]} {[%emt 00:00:31]} Kf7
{[%clk 00:01:40]} {[%emt 00:00:10]} 21. a5 {[%clk 00:01:03]} {[%emt 00:00:03]}
Ke7 {[%clk 00:01:37]} {[%emt 00:00:05]} 22. Rd5 {[%clk 00:00:38]} {[%emt
00:00:27]} Bb7 {[%clk 00:01:34]} {[%emt 00:00:05]} 23. Nd2 {[%clk 00:00:31]}
{[%emt 00:00:09]} Bxd5 {[%clk 00:01:29]} {[%emt 00:00:07]} 24. exd5 {[%clk
00:00:30]} {[%emt 00:00:03]} Nd4 {[%clk 00:01:28]} {[%emt 00:00:03]} 25. Bf1
{[%clk 00:00:31]} f5 {[%clk 00:01:28]} {[%emt 00:00:02]} 26. Re1 {[%clk
00:00:24]} {[%emt 00:00:09]} Kd6 {[%clk 00:01:29]} {[%emt 00:00:01]} 27. f3
{[%clk 00:00:24]} {[%emt 00:00:02]} Rae8 {[%clk 00:01:17]} {[%emt 00:00:13]} 28.
Bd3 {[%clk 00:00:25]} {[%emt 00:00:01]} 1/2-1/2

[Event "MČR v bleskovém šachu družstev 2019"]
[Site "Teplice, Czech Republic"]
[Date "2019.09.14"]
[Round "9.11"]
[White "Kral, David"]
[Black "Cech, Pavel"]
[Result "1/2-1/2"]
[TimeControl "3 mim. + 2 s"]
[BlackTitle "IM"]
[WhiteFideId "326097"]
[WhiteElo "2028"]
[BlackElo "2387"]

1. d4 {[%clk 00:03:02]} {[%emt 00:00:02]} d5 {[%clk 00:03:00]} {[%emt
00:00:05]} 2. c4 {[%clk 00:03:03]} {[%emt 00:00:01]} c6 {[%clk 00:03:01]} 3.
Nc3 {[%clk 00:03:04]} {[%emt 00:00:01]} Nf6 {[%clk 00:03:02]} 4. Bg5 {[%clk
00:03:05]} {[%emt 00:00:02]} Ne4 {[%clk 00:02:58]} {[%emt 00:00:07]} 5. Bh4
{[%clk 00:03:05]} {[%emt 00:00:02]} Qa5 {[%clk 00:02:52]} {[%emt 00:00:08]} 6.
Qb3 {[%clk 00:03:03]} {[%emt 00:00:04]} e6 {[%clk 00:02:47]} {[%emt 00:00:07]}
7. f3 {[%clk 00:02:59]} {[%emt 00:00:06]} Nxc3 8. bxc3 {[%clk 00:03:00]} c5
{[%clk 00:02:35]} {[%emt 00:00:14]} 9. Qb5+ {[%clk 00:02:45]} {[%emt 00:00:17]}
Qxb5 {[%clk 00:02:35]} {[%emt 00:00:01]} 10. cxb5 {[%clk 00:02:46]} {[%emt
00:00:01]} cxd4 {[%clk 00:02:31]} {[%emt 00:00:06]} 11. cxd4 {[%clk 00:02:47]}
Bb4+ {[%clk 00:02:32]} {[%emt 00:00:01]} 12. Kf2 {[%clk 00:02:44]} {[%emt
00:00:05]} Nd7 {[%clk 00:02:09]} {[%emt 00:00:25]} 13. e4 {[%clk 00:02:37]}
{[%emt 00:00:09]} Nb6 {[%clk 00:02:04]} {[%emt 00:00:06]} 14. Ke3 {[%clk
00:02:20]} {[%emt 00:00:19]} Bd7 {[%clk 00:02:01]} {[%emt 00:00:06]} 15. a4
{[%clk 00:02:17]} {[%emt 00:00:05]} Rc8 {[%clk 00:01:54]} {[%emt 00:00:08]} 16.
Bd3 {[%clk 00:02:06]} {[%emt 00:00:14]} Bc3 {[%clk 00:01:26]} {[%emt 00:00:30]}
17. Ra2 {[%clk 00:01:49]} {[%emt 00:00:19]} Nc4+ {[%clk 00:01:16]} {[%emt
00:00:12]} 18. Bxc4 {[%clk 00:01:43]} {[%emt 00:00:09]} Rxc4 {[%clk 00:01:16]}
{[%emt 00:00:02]} 19. Ne2 {[%clk 00:01:41]} {[%emt 00:00:04]} Ba5 {[%clk
00:01:15]} {[%emt 00:00:03]} 20. Rc1 {[%clk 00:01:36]} {[%emt 00:00:06]} O-O
{[%clk 00:00:59]} {[%emt 00:00:18]} 21. Rxc4 {[%clk 00:01:24]} {[%emt
00:00:15]} dxc4 {[%clk 00:01:00]} {[%emt 00:00:01]} 22. Rc2 {[%clk 00:01:13]}
{[%emt 00:00:14]} Rc8 {[%clk 00:01:01]} 23. Nc3 {[%clk 00:01:04]} {[%emt
00:00:10]} a6 {[%clk 00:01:02]} {[%emt 00:00:01]} 24. Be1 {[%clk 00:00:38]}
{[%emt 00:00:28]} axb5 {[%clk 00:01:03]} {[%emt 00:00:02]} 25. axb5 {[%clk
00:00:35]} {[%emt 00:00:05]} Bxc3 {[%clk 00:00:57]} {[%emt 00:00:08]} 26. Bxc3
{[%clk 00:00:28]} {[%emt 00:00:09]} Bxb5 {[%clk 00:00:58]} {[%emt 00:00:01]} 27.
Rb2 {[%clk 00:00:28]} {[%emt 00:00:02]} Ba6 {[%clk 00:00:59]} {[%emt 00:00:01]}
28. g4 {[%clk 00:00:21]} {[%emt 00:00:08]} f6 {[%clk 00:01:00]} {[%emt
00:00:01]} 29. h4 {[%clk 00:00:23]} Kf7 {[%clk 00:01:01]} 30. h5 {[%clk
00:00:23]} {[%emt 00:00:01]} Rd8 {[%clk 00:00:59]} {[%emt 00:00:04]} 31. Rb6
{[%clk 00:00:23]} {[%emt 00:00:03]} Rd7 {[%clk 00:00:49]} {[%emt 00:00:12]} 32.
f4 {[%clk 00:00:23]} {[%emt 00:00:01]} Rd8 {[%clk 00:00:46]} {[%emt 00:00:05]}
33. e5 {[%clk 00:00:22]} {[%emt 00:00:03]} Rd5 {[%clk 00:00:46]} {[%emt
00:00:02]} 34. Ke4 {[%clk 00:00:19]} {[%emt 00:00:05]} Rb5 {[%clk 00:00:40]}
{[%emt 00:00:09]} 35. Rxb5 {[%clk 00:00:18]} {[%emt 00:00:03]} Bxb5 {[%clk
00:00:41]} 36. f5 {[%clk 00:00:16]} {[%emt 00:00:05]} Bc6+ {[%clk 00:00:42]}
{[%emt 00:00:01]} 37. Kf4 {[%clk 00:00:17]} h6 {[%clk 00:00:37]} {[%emt
00:00:07]} 38. Bb4 {[%clk 00:00:14]} {[%emt 00:00:04]} b5 {[%clk 00:00:38]}
{[%emt 00:00:02]} 39. Bc3 {[%clk 00:00:15]} {[%emt 00:00:01]} Bg2 {[%clk
00:00:39]} {[%emt 00:00:01]} 40. Ke3 {[%clk 00:00:13]} {[%emt 00:00:04]} Bf1
{[%clk 00:00:39]} {[%emt 00:00:02]} 41. Kf4 {[%clk 00:00:14]} Be2 {[%clk
00:00:40]} {[%emt 00:00:02]} 42. Bb4 {[%clk 00:00:14]} {[%emt 00:00:02]} fxe5+
{[%clk 00:00:28]} {[%emt 00:00:14]} 43. dxe5 {[%clk 00:00:14]} {[%emt
00:00:03]} Bd3 {[%clk 00:00:20]} {[%emt 00:00:09]} 44. Bc3 {[%clk 00:00:12]}
{[%emt 00:00:04]} Bc2 {[%clk 00:00:16]} {[%emt 00:00:06]} 45. Ke4 {[%emt
00:00:05]} 1/2-1/2

[Event "MČR v bleskovém šachu družstev 2019"]
[Site "Teplice, Czech Republic"]
[Date "2019.09.14"]
[Round "9.12"]
[White "Sodoma, Jan"]
[Black "Krutsky, Martin"]
[Result "0-1"]
[TimeControl "3 mim. + 2 s"]
[WhiteTitle "IM"]
[BlackFideId "361526"]
[WhiteElo "2193"]
[BlackElo "1974"]

1. Nf3 {[%clk 00:03:03]} {[%emt 00:00:03]} Nf6 {[%clk 00:03:03]} {[%emt
00:00:02]} 2. c4 {[%clk 00:03:04]} {[%emt 00:00:02]} g6 {[%clk 00:03:04]}
{[%emt 00:00:01]} 3. b3 {[%clk 00:03:05]} {[%emt 00:00:01]} Bg7 {[%clk
00:03:05]} {[%emt 00:00:01]} 4. Bb2 {[%clk 00:03:05]} O-O {[%clk 00:03:05]}
{[%emt 00:00:02]} 5. g3 {[%clk 00:03:06]} {[%emt 00:00:01]} d6 {[%clk
00:03:03]} {[%emt 00:00:04]} 6. d4 {[%clk 00:03:07]} {[%emt 00:00:01]} c6
{[%clk 00:02:51]} {[%emt 00:00:14]} 7. Bg2 {[%clk 00:03:07]} {[%emt 00:00:02]}
a6 {[%clk 00:02:50]} {[%emt 00:00:03]} 8. O-O {[%clk 00:03:06]} {[%emt
00:00:03]} b5 {[%clk 00:02:50]} {[%emt 00:00:02]} 9. Re1 {[%clk 00:02:47]}
{[%emt 00:00:21]} Bb7 {[%clk 00:02:47]} {[%emt 00:00:04]} 10. e4 {[%clk
00:02:44]} {[%emt 00:00:06]} Qc7 {[%clk 00:02:19]} {[%emt 00:00:31]} 11. e5
{[%clk 00:02:43]} {[%emt 00:00:03]} dxe5 {[%clk 00:02:11]} {[%emt 00:00:10]} 12.
dxe5 {[%clk 00:02:41]} {[%emt 00:00:05]} Ng4 {[%clk 00:01:51]} {[%emt
00:00:22]} 13. Qc2 {[%clk 00:02:15]} {[%emt 00:00:26]} e6 {[%clk 00:01:20]}
{[%emt 00:00:35]} 14. Nbd2 {[%clk 00:02:01]} {[%emt 00:00:16]} Nd7 {[%clk
00:01:14]} {[%emt 00:00:08]} 15. Qe4 {[%clk 00:01:36]} {[%emt 00:00:27]} Nh6
{[%clk 00:00:39]} {[%emt 00:00:37]} 16. g4 {[%clk 00:01:19]} {[%emt 00:00:18]}
Rfd8 {[%clk 00:00:28]} {[%emt 00:00:13]} 17. Rad1 {[%clk 00:00:56]} {[%emt
00:00:26]} Nc5 {[%clk 00:00:23]} {[%emt 00:00:06]} 18. Qc2 {[%clk 00:00:36]}
{[%emt 00:00:23]} Nd3 {[%clk 00:00:12]} {[%emt 00:00:13]} 19. Re4 {[%clk
00:00:27]} {[%emt 00:00:11]} c5 {[%clk 00:00:11]} {[%emt 00:00:03]} 20. cxb5
{[%clk 00:00:19]} {[%emt 00:00:10]} Bxe4 {[%clk 00:00:11]} {[%emt 00:00:02]} 21.
Nxe4 {[%clk 00:00:20]} {[%emt 00:00:01]} Nxb2 {[%clk 00:00:09]} {[%emt
00:00:04]} 22. Rxd8+ {[%clk 00:00:13]} {[%emt 00:00:09]} Rxd8 {[%clk 00:00:10]}
23. Qxb2 {[%clk 00:00:14]} {[%emt 00:00:01]} Nxg4 {[%clk 00:00:11]} {[%emt
00:00:01]} 24. bxa6 {[%clk 00:00:10]} {[%emt 00:00:06]} Nxe5 {[%clk 00:00:12]}
{[%emt 00:00:01]} 25. Nxe5 Bxe5 {[%clk 00:00:13]} 26. Qe2 {[%clk 00:00:07]}
{[%emt 00:00:02]} Bxh2+ {[%clk 00:00:14]} {[%emt 00:00:02]} 27. Kh1 {[%clk
00:00:09]} Bf4 {[%clk 00:00:12]} {[%emt 00:00:03]} 28. Bf3 {[%clk 00:00:05]}
{[%emt 00:00:06]} Rd4 {[%clk 00:00:09]} {[%emt 00:00:04]} 29. Qb5 {[%clk
00:00:05]} {[%emt 00:00:02]} Kg7 {[%clk 00:00:08]} {[%emt 00:00:04]} 30. a4
{[%clk 00:00:05]} {[%emt 00:00:02]} Qe5 {[%clk 00:00:09]} {[%emt 00:00:01]} 31.
Kg2 {[%clk 00:00:05]} {[%emt 00:00:02]} Rxe4 {[%clk 00:00:10]} 32. Qd3 {[%clk
00:00:06]} {[%emt 00:00:01]} Rd4 {[%clk 00:00:10]} {[%emt 00:00:02]} 33. Qb5
{[%clk 00:00:06]} {[%emt 00:00:02]} Qg5+ {[%clk 00:00:11]} {[%emt 00:00:01]} 34.
Kf1 {[%clk 00:00:07]} Qh4 {[%clk 00:00:09]} {[%emt 00:00:03]} 35. a7 {[%clk
00:00:07]} {[%emt 00:00:02]} Qd8 {[%clk 00:00:06]} {[%emt 00:00:06]} 36. a8=Q
{[%clk 00:00:06]} {[%emt 00:00:03]} Rd1+ {[%clk 00:00:04]} {[%emt 00:00:04]} 37.
Kg2 {[%clk 00:00:06]} {[%emt 00:00:01]} Qg5+ {[%clk 00:00:05]} {[%emt
00:00:01]} 38. Kh3 {[%clk 00:00:07]} {[%emt 00:00:02]} Rg1 {[%clk 00:00:03]}
{[%emt 00:00:04]} 39. Qf8+ {[%clk 00:00:03]} {[%emt 00:00:05]} Kxf8 {[%clk
00:00:04]} {[%emt 00:00:02]} 0-1

[Event "MČR v bleskovém šachu družstev 2019"]
[Site "Teplice, Czech Republic"]
[Date "2019.09.14"]
[Round "9.13"]
[White "Formanek, Martin"]
[Black "Liska, Jiri"]
[Result "1-0"]
[TimeControl "3 mim. + 2 s"]
[BlackTitle "FM"]
[WhiteFideId "316768"]
[WhiteElo "2230"]
[BlackElo "2241"]

1. e4 {[%clk 00:03:03]} c5 {[%clk 00:03:02]} {[%emt 00:00:02]} 2. Nf3 {[%clk
00:03:03]} {[%emt 00:00:02]} Nc6 {[%clk 00:03:04]} 3. Bb5 {[%clk 00:03:03]}
{[%emt 00:00:01]} g6 {[%clk 00:03:04]} {[%emt 00:00:01]} 4. O-O {[%emt
00:00:02]} Bg7 5. Re1 {[%clk 00:03:03]} {[%emt 00:00:03]} Qc7 {[%clk 00:03:00]}
{[%emt 00:00:08]} 6. c3 {[%clk 00:02:57]} {[%emt 00:00:08]} a6 {[%clk
00:02:58]} {[%emt 00:00:04]} 7. Bxc6 {[%clk 00:02:52]} {[%emt 00:00:07]} Qxc6
{[%clk 00:02:49]} {[%emt 00:00:10]} 8. d4 {[%clk 00:02:52]} {[%emt 00:00:03]}
d5 {[%clk 00:02:35]} {[%emt 00:00:15]} 9. e5 {[%clk 00:01:48]} {[%emt
00:01:06]} Nh6 {[%clk 00:02:25]} {[%emt 00:00:13]} 10. dxc5 {[%clk 00:01:33]}
{[%emt 00:00:17]} Qxc5 {[%clk 00:02:15]} {[%emt 00:00:12]} 11. Be3 {[%clk
00:01:31]} {[%emt 00:00:04]} Qc6 {[%clk 00:02:01]} {[%emt 00:00:16]} 12. Nd4
{[%clk 00:01:24]} {[%emt 00:00:09]} Qc7 {[%clk 00:02:02]} {[%emt 00:00:01]} 13.
e6 {[%clk 00:01:15]} {[%emt 00:00:12]} f6 {[%clk 00:01:45]} {[%emt 00:00:18]}
14. Bxh6 {[%clk 00:01:03]} {[%emt 00:00:13]} Bxh6 {[%clk 00:01:45]} {[%emt
00:00:02]} 15. Qb3 {[%clk 00:01:04]} {[%emt 00:00:01]} Qd6 {[%clk 00:01:34]}
{[%emt 00:00:13]} 16. Qa4+ {[%clk 00:00:51]} {[%emt 00:00:16]} Kf8 {[%clk
00:01:30]} {[%emt 00:00:06]} 17. Na3 {[%clk 00:00:47]} {[%emt 00:00:06]} Bf4
{[%clk 00:01:16]} {[%emt 00:00:16]} 18. g3 {[%clk 00:00:46]} {[%emt 00:00:02]}
Be5 {[%clk 00:01:16]} {[%emt 00:00:02]} 19. Nac2 {[%clk 00:00:46]} {[%emt
00:00:02]} Kg7 {[%clk 00:01:11]} {[%emt 00:00:08]} 20. f4 {[%clk 00:00:44]}
{[%emt 00:00:03]} Bxd4+ {[%clk 00:01:05]} {[%emt 00:00:08]} 21. Nxd4 {[%clk
00:00:46]} Rb8 {[%clk 00:00:54]} {[%emt 00:00:13]} 22. Qd1 {[%clk 00:00:43]}
{[%emt 00:00:05]} b5 {[%clk 00:00:49]} {[%emt 00:00:06]} 23. a3 {[%clk
00:00:43]} {[%emt 00:00:02]} Rb6 {[%clk 00:00:42]} {[%emt 00:00:09]} 24. Re3
{[%clk 00:00:41]} {[%emt 00:00:04]} Qc5 {[%clk 00:00:42]} {[%emt 00:00:02]} 25.
Qe1 {[%clk 00:00:39]} {[%emt 00:00:03]} Rd8 {[%clk 00:00:37]} {[%emt 00:00:08]}
26. Kg2 {[%clk 00:00:39]} {[%emt 00:00:03]} Rdd6 {[%clk 00:00:37]} {[%emt
00:00:02]} 27. Qe2 {[%clk 00:00:38]} {[%emt 00:00:04]} a5 {[%clk 00:00:29]}
{[%emt 00:00:10]} 28. b4 {[%clk 00:00:37]} {[%emt 00:00:03]} axb4 {[%clk
00:00:28]} {[%emt 00:00:03]} 29. axb4 {[%clk 00:00:37]} {[%emt 00:00:02]} Qc4
{[%clk 00:00:19]} {[%emt 00:00:10]} 30. Qg4 {[%clk 00:00:37]} Ra6 {[%clk
00:00:11]} {[%emt 00:00:11]} 31. Nf5+ {[%clk 00:00:32]} {[%emt 00:00:07]} Kf8
{[%clk 00:00:12]} {[%emt 00:00:01]} 32. Nxd6 {[%clk 00:00:33]} {[%emt
00:00:01]} Rxa1 {[%clk 00:00:11]} {[%emt 00:00:03]} 33. Nxc4 {[%clk 00:00:34]}
{[%emt 00:00:01]} 1-0